Workbook

Sheet Лист1
A1: Школа | C1: МБОУ Кудинновская ООШ | F1: Утвердил: | G1: должность | H1: Директор школы
A2: Типовое примерное меню приготавливаемых блюд | G2: фамилия | H2: О.В.Волгина
A3: Возрастная категория | E3: 7-11 лет | G3: дата | H3: 1 | I3: 9 | J3: 2025
H4: день | I4: месяц | J4: год
A5: Неделя | B5: День недели | C5: Прием пищи | D5: Раздел меню | E5: Блюда | F5: Вес блюда, г | G5: Белки | H5: Жиры | I5: Углеводы | J5: Калорийность | K5: № рецептуры | L5: Цена
A6: 1 | B6: 1 | C6: Завтрак | D6: гор.блюдо | E6: Каша овсяная молочная жидкая | F6: 220/7 | G6: 8.6 | H6: 10.65 | I6: 36.17 | J6: 270.69 | K6: 183
D8: гор.напиток | E8: Чай с сахаром | F8: 200 | G8: 0.1 | H8: 0 | I8: 13.96 | J8: 56.6 | K8: 376
D9: хлеб | E9: Хлеб пшеничный | F9: 50 | G9: 3.95 | H9: 0.5 | I9: 24.15 | J9: 106.8 | K9: Н
D10: фрукты
D11: закуска | E11: Сыр (порциями) (Российский) | F11: 10 | G11: 2.2 | H11: 2.82 | I11: 0 | J11: 34.87 | K11: 3
D12: хлеб | E12: Хлеб ржаной 1 | F12: 30 | G12: 1.98 | H12: 0.36 | I12: 10.02 | J12: 49.62 | K12: 51
D13: итого | F13: 510 | G13: =SUM(G6:G12) -> 16.83 | H13: 14.33 | I13: 84.3 | J13: 518.58 | L13: =SUM(L6:L12) -> 0
A14: =A6 -> 1 | B14: =B6 -> 1 | C14: Обед | D14: закуска | E14: Салат из свежих огурцов | F14: 60 | G14: 0.47 | H14: 3.06 | I14: 1.78 | J14: 36.53 | K14: 13
D15: 1 блюдо | E15: Суп картофельный с крупой рисовой | F15: 200 | G15: 1.5 | H15: 2 | I15: 12.22 | J15: 69.72 | K15: 61
D16: 2 блюдо | E16: Гуляш | F16: 90/15 | G16: 15.06 | H16: 36.77 | I16: 4.96 | J16: 410.64 | K16: 92
D17: гарнир | E17: Картофельное пюре | F17: 150 | G17: 2.89 | H17: 4.98 | I17: 19.03 | J17: 127.92 | K17: 131
D18: напиток | E18: Компот из смеси сухофруктов | F18: 200 | G18: 1.96 | H18: 0.4 | I18: 46.72 | J18: 194.84 | K18: 278
D19: хлеб бел. | E19: Хлеб пшеничный | F19: 25 | G19: 1.98 | H19: 0.25 | I19: 12.07 | J19: 53.4 | K19: 236
D20: хлеб черн. | E20: Хлеб ржаной | F20: 30 | G20: 1.98 | H20: 0.36 | I20: 10.02 | J20: 49.62 | K20: 50
D23: итого | F23: 755 | G23: =SUM(G14:G22) -> 25.84 | H23: 47.82 | I23: 106.8 | J23: 942.67 | L23: =SUM(L14:L22) -> 0
A24: =A6 -> 1 | B24: =B6 -> 1 | C24: Итого за день: | F24: =F13+F23 -> 1265 | G24: =G13+G23 -> 42.67 | H24: 62.15 | I24: 191.1 | J24: 1461.25 | L24: =L13+L23 -> 0
A25: 1 | B25: 2 | C25: Завтрак | D25: гор.блюдо | E25: Тефтели 1-й вариант | F25: 50/20 | G25: 6.47 | H25: 16.1 | I25: 8.47 | J25: 202.7 | K25: 278
D26: закуска | E26: Зеленый горошек | F26: 30 | G26: 6.9 | H26: 0.36 | I26: 15.99 | J26: 90.81 | K26: 28
D27: гор.напиток | E27: Кофейный напиток с молоком | F27: 200 | G27: 3.6 | H27: 3.92 | I27: 25.4 | J27: 152.2 | K27: 379
D28: хлеб | E28: Хлеб пшеничный | F28: 50 | G28: 3.95 | H28: 0.5 | I28: 24.15 | J28: 106.8 | K28: Н
D29: фрукты
D30: гарнир | E30: Каша пшеничная рассыпчатая | F30: 150/5 | G30: 7.58 | H30: 3.71 | I30: 41.98 | J30: 216.83 | K30: 167
D31: хлеб | E31: Хлеб ржаной 1 | F31: 30 | G31: 1.98 | H31: 0.36 | I31: 10.02 | J31: 49.62 | K31: 51
D32: итого | F32: 510 | G32: =SUM(G25:G31) -> 30.48 | H32: =SUM(H25:H31) -> 24.95 | I32: =SUM(I25:I31) -> 126.01 | J32: =SUM(J25:J31) -> 818.96 | L32: 0
A33: =A25 -> 1 | B33: =B25 -> 2 | C33: Обед | D33: закуска | E33: Икра свекольная | F33: 60 | G33: 0.99 | H33: 4.25 | I33: 5.51 | J33: 64.53 | K33: 46
D34: 1 блюдо | E34: Борщ с капустой и картофелем | F34: 200/5 | G34: 1.78 | H34: 4.98 | I34: 11.22 | J34: 97.68 | K34: 54
D35: 2 блюдо | E35: Печень по-строгановски | F35: 90/20 | G35: 22.91 | H35: 16.78 | I35: 3.78 | J35: 284.98 | K35: 95
D36: гарнир | E36: Макаронные изделия отварные | F36: 150/4 | G36: 5.77 | H36: 0.69 | I36: 36.6 | J36: 179.55 | K36: 202
D37: напиток | E37: Компот из смеси сухофруктов | F37: 200 | G37: 1.96 | H37: 0.4 | I37: 46.72 | J37: 194.84 | K37: 278
D38: хлеб бел. | E38: Хлеб пшеничный | F38: 25 | G38: 1.98 | H38: 0.25 | I38: 12.07 | J38: 53.4 | K38: 236
D39: хлеб черн. | E39: Хлеб ржаной | F39: 30 | G39: 1.98 | H39: 0.36 | I39: 10.02 | J39: 49.62 | K39: 50
D42: итого | F42: 755 | G42: =SUM(G33:G41) -> 37.37 | H42: =SUM(H33:H41) -> 27.71 | I42: =SUM(I33:I41) -> 125.92 | J42: =SUM(J33:J41) -> 924.6 | L42: 0
A43: =A25 -> 1 | B43: =B25 -> 2 | C43: Итого за день: | F43: =F32+F42 -> 1265 | G43: =G32+G42 -> 67.85 | H43: =H32+H42 -> 52.66 | I43: =I32+I42 -> 251.93 | J43: =J32+J42 -> 1743.56 | L43: 0
A44: 1 | B44: 3 | C44: Завтрак | D44: гор.блюдо | E44: Тефтели рыбные | F44: 60/20 | G44: 4.64 | H44: 4.78 | I44: 7.25 | J44: 89 | K44: 87
D45: гарнир | E45: Картофельное пюре | F45: 120 | G45: 2.12 | H45: 3.65 | I45: 13.96 | J45: 93.81 | K45: 131
D46: гор.напиток | E46: Какао с молоком | F46: 200 | G46: 3.86 | H46: 3.9 | I46: 14.82 | J46: 114.82 | K46: 274
D47: хлеб | E47: Хлеб пшеничный | F47: 50 | G47: 3.95 | H47: 0.5 | I47: 24.15 | J47: 106.8 | K47: Н
D48: фрукты
D49: закуска | E49: Салат из свежих огурцов | F49: 60 | G49: 0.32 | H49: 2.04 | I49: 1.18 | J49: 24.36 | K49: 13
D50: хлеб | E50: Хлеб ржаной 1 | F50: 30 | G50: 1.98 | H50: 0.36 | I50: 10.02 | J50: 49.62 | K50: 51
D51: итого | F51: 550 | G51: =SUM(G44:G50) -> 16.87 | H51: =SUM(H44:H50) -> 15.23 | I51: =SUM(I44:I50) -> 71.38 | J51: =SUM(J44:J50) -> 478.41 | L51: 0
A52: =A44 -> 1 | B52: =B44 -> 3 | C52: Обед | D52: закуска | E52: Капуста тушеная | F52: 60 | G52: 1.31 | H52: 1.6 | I52: 6.04 | J52: 42.43 | K52: 134
D53: 1 блюдо | E53: Суп картофельный с макаронными изделиями | F53: 200 | G53: 2.08 | H53: 2.92 | I53: 14.88 | J53: 95 | K53: 59
D54: 2 блюдо | E54: Рагу овощное с мясом курицы | F54: 200 | G54: 7.88 | H54: 15.24 | I54: 25.86 | J54: 268 | K54: 145
D55: гарнир
D56: напиток | E56: Компот из смеси сухофруктов | F56: 200 | G56: 1.96 | H56: 0.4 | I56: 46.72 | J56: 194.84 | K56: 278
D57: хлеб бел. | E57: Хлеб пшеничный | F57: 25 | G57: 1.98 | H57: 0.25 | I57: 12.07 | J57: 53.4 | K57: 236
D58: хлеб черн. | E58: Хлеб ржаной | F58: 30 | G58: 1.98 | H58: 0.36 | I58: 10.02 | J58: 49.62 | K58: 50
D61: итого | F61: 715 | G61: =SUM(G52:G60) -> 17.19 | H61: =SUM(H52:H60) -> 20.77 | I61: =SUM(I52:I60) -> 115.59 | J61: =SUM(J52:J60) -> 703.29 | L61: 0
A62: =A44 -> 1 | B62: =B44 -> 3 | C62: Итого за день: | F62: =F51+F61 -> 1265 | G62: =G51+G61 -> 34.06 | H62: =H51+H61 -> 36 | I62: =I51+I61 -> 186.97 | J62: =J51+J61 -> 1181.7 | L62: 0
A63: 1 | B63: 4 | C63: Завтрак | D63: гор.блюдо | E63: Каша рисовая молочная жидкая | F63: 210/5 | G63: 5.61 | H63: 7.62 | I63: 51.47 | J63: 280.48 | K63: 184
D64: закуска | E64: Сыр (порциями) (Российский) | F64: 10 | G64: 2.2 | H64: 2.82 | I64: 0 | J64: 34.87 | K64: 3
D65: гор.напиток | E65: Чай с сахаром | F65: 200 | G65: 0.1 | H65: 0 | I65: 13.96 | J65: 56.6 | K65: 376
D66: хлеб | E66: Хлеб пшеничный | F66: 50 | G66: 3.95 | H66: 0.5 | I66: 24.15 | J66: 106.8 | K66: Н
D67: фрукты
D68: хлеб | E68: Хлеб ржаной 1 | F68: 30 | G68: 1.98 | H68: 0.36 | I68: 10.02 | J68: 49.62 | K68: 51
D70: итого | F70: 500 | G70: =SUM(G63:G69) -> 13.84 | H70: =SUM(H63:H69) -> 11.3 | I70: =SUM(I63:I69) -> 99.6 | J70: =SUM(J63:J69) -> 528.37 | L70: 0
A71: =A63 -> 1 | B71: =B63 -> 4 | C71: Обед | D71: закуска | E71: Салат из свеклы с растительным маслом | F71: 60 | G71: 0.44 | H71: 3.23 | I71: 2.59 | J71: 41.13 | K71: 25
D72: 1 блюдо | E72: Суп картофельный с бобовыми | F72: 200 | G72: 14.78 | H72: 7.98 | I72: 14.36 | J72: 189.82 | K72: 774
D73: 2 блюдо | E73: Котлета из свинины | F73: 90 | G73: 10.67 | H73: 26.47 | I73: 13.76 | J73: 331.77 | K73: 103
D74: гарнир | E74: Каша пшеничнаяя рассыпчатая | F74: 150 | G74: 7.58 | H74: 3.71 | I74: 41.98 | J74: 216.83 | K74: 168
D75: напиток | E75: Компот из смеси сухофруктов | F75: 200 | G75: 1.96 | H75: 0.4 | I75: 46.72 | J75: 194.84 | K75: 278
D76: хлеб бел. | E76: Хлеб пшеничный | F76: 25 | G76: 1.98 | H76: 0.25 | I76: 12.07 | J76: 53.4 | K76: 236
D77: хлеб черн. | E77: Хлеб ржаной | F77: 30 | G77: 1.98 | H77: 0.36 | I77: 10.02 | J77: 49.62 | K77: 50
D80: итого | F80: 735 | G80: =SUM(G71:G79) -> 39.39 | H80: =SUM(H71:H79) -> 42.4 | I80: =SUM(I71:I79) -> 141.5 | J80: =SUM(J71:J79) -> 1077.41 | L80: 0
A81: =A63 -> 1 | B81: =B63 -> 4 | C81: Итого за день: | F81: =F70+F80 -> 1235 | G81: =G70+G80 -> 53.23 | H81: =H70+H80 -> 53.7 | I81: =I70+I80 -> 241.1 | J81: =J70+J80 -> 1605.78 | L81: 0
A82: 1 | B82: 5 | C82: Завтрак | D82: гор.блюдо | E82: Каша пшеничнаяя рассыпчатая | F82: 150 | G82: 7.58 | H82: 3.71 | I82: 41.98 | J82: 216.83 | K82: 168
D83: закуска | E83: Икра кабачковая | F83: 30 | G83: 0.38 | H83: 1.59 | I83: 2.04 | J83: 25.05 | K83: 12
D84: гор.напиток | E84: Чай с сахаром | F84: 200 | G84: 0.1 | H84: 0 | I84: 13.96 | J84: 56.6 | K84: 376
D85: хлеб | E85: Хлеб пшеничный | F85: 50 | G85: 3.95 | H85: 0.5 | I85: 24.15 | J85: 106.8 | K85: Н
D86: фрукты
D87: хлеб | E87: Хлеб ржаной 1 | F87: 30 | G87: 1.98 | H87: 0.36 | I87: 10.02 | J87: 49.62 | K87: 51
D88: закуска | E88: Яйца вареные | F88: 40 | G88: 4.42 | H88: 4 | I88: 0.24 | J88: 54.64 | K88: 18
D89: итого | F89: 500 | G89: =SUM(G82:G88) -> 18.41 | H89: =SUM(H82:H88) -> 10.16 | I89: =SUM(I82:I88) -> 92.39 | J89: =SUM(J82:J88) -> 509.54 | L89: 0
A90: =A82 -> 1 | B90: =B82 -> 5 | C90: Обед | D90: закуска | E90: Салат из свежих помидоров | F90: 60 | G90: 0.53 | H90: 3.09 | I90: 2.73 | J90: 69.17 | K90: 12
D91: 1 блюдо | E91: Борщ с капустой и картофелем | F91: 200/5 | G91: 1.78 | H91: 4.98 | I91: 11.22 | J91: 97.68 | K91: 54
D92: 2 блюдо | E92: Плов из свинины | F92: 240 | G92: 17.02 | H92: 49.34 | I92: 45.91 | J92: 679.58 | K92: 96
D93: гарнир
D94: напиток | E94: Компот из смеси сухофруктов | F94: 200 | G94: 1.96 | H94: 0.4 | I94: 46.72 | J94: 194.84 | K94: 278
D95: хлеб бел. | E95: Хлеб пшеничный | F95: 25 | G95: 1.98 | H95: 0.25 | I95: 12.07 | J95: 53.4 | K95: 236
D96: хлеб черн. | E96: Хлеб ржаной | F96: 30 | G96: 1.98 | H96: 0.36 | I96: 10.02 | J96: 49.62 | K96: 50
D99: итого | F99: 755 | G99: =SUM(G90:G98) -> 25.25 | H99: =SUM(H90:H98) -> 58.42 | I99: =SUM(I90:I98) -> 128.67 | J99: =SUM(J90:J98) -> 1144.29 | L99: 0
A100: =A82 -> 1 | B100: =B82 -> 5 | C100: Итого за день: | F100: =F89+F99 -> 1255 | G100: =G89+G99 -> 43.66 | H100: =H89+H99 -> 68.58 | I100: =I89+I99 -> 221.06 | J100: =J89+J99 -> 1653.83 | L100: 0
A101: 2 | B101: 1 | C101: Завтрак | D101: гор.блюдо | E101: Каша жидкая молочная пшенная (с маслом и сахаром) | F101: 200 | G101: 6.84 | H101: 10.7 | I101: 42.78 | J101: 287.24 | K101: 182
D102: закуска | E102: Сыр (порциями) (Российский) | F102: 10 | G102: 2.2 | H102: 2.82 | I102: 0 | J102: 34.87 | K102: 3
D103: гор.напиток | E103: Чай с сахаром | F103: 200 | G103: 0.1 | H103: 0 | I103: 13.96 | J103: 56.6 | K103: 376
D104: хлеб | E104: Хлеб пшеничный | F104: 50 | G104: 3.95 | H104: 0.5 | I104: 24.15 | J104: 106.8 | K104: Н
D105: фрукты
D106: хлеб | E106: Хлеб ржаной 1 | F106: 30 | G106: 1.98 | H106: 0.36 | I106: 10.02 | J106: 49.62 | K106: 51
D108: итого | F108: 490 | G108: =SUM(G101:G107) -> 15.07 | H108: 14.38 | I108: 90.91 | J108: 535.13 | L108: =SUM(L101:L107) -> 0
A109: =A101 -> 2 | B109: =B101 -> 1 | C109: Обед | D109: закуска | E109: Салат из свеклы с растительным маслом | F109: 60 | G109: 0.44 | H109: 3.23 | I109: 2.59 | J109: 41.13 | K109: 25
D110: 1 блюдо | E110: Суп картофельный с крупой рисовой | F110: 200 | G110: 1.5 | H110: 2 | I110: 12.22 | J110: 69.72 | K110: 61
D111: 2 блюдо | E111: Гуляш | F111: 90/15 | G111: 15.06 | H111: 36.77 | I111: 4.96 | J111: 410.64 | K111: 92
D112: гарнир | E112: Макаронные изделия отварные | F112: 140/5 | G112: 5.47 | H112: 5.52 | I112: 34.44 | J112: 206.57 | K112: 202
D113: напиток | E113: Компот из смеси сухофруктов | F113: 200 | G113: 1.96 | H113: 0.4 | I113: 46.72 | J113: 194.84 | K113: 278
D114: хлеб бел. | E114: Хлеб пшеничный | F114: 25 | G114: 1.98 | H114: 0.25 | I114: 12.07 | J114: 53.4 | K114: 236
D115: хлеб черн. | E115: Хлеб ржаной | F115: 30 | G115: 1.98 | H115: 0.36 | I115: 10.02 | J115: 49.62 | K115: 50
D118: итого | F118: 725 | G118: =SUM(G109:G117) -> 28.39 | H118: 48.53 | I118: 123.02 | J118: 1025.92 | L118: =SUM(L109:L117) -> 0
A119: =A101 -> 2 | B119: =B101 -> 1 | C119: Итого за день: | F119: =F108+F118 -> 1215 | G119: =G108+G118 -> 43.46 | H119: =H108+H118 -> 62.91 | I119: =I108+I118 -> 213.93 | J119: =J108+J118 -> 1561.05 | L119: 0
A120: 2 | B120: 2 | C120: Завтрак | D120: гор.блюдо | E120: Запеканка из творога | F120: 160/30 | G120: 31.07 | H120: 21.9 | I120: 29.92 | J120: 419.47 | K120: 213
D121: гарнир | E121: Соус молочный | F121: 40 | G121: 0.83 | H121: 2.31 | I121: 3.06 | J121: 33.96 | K121: 226
D122: гор.напиток | E122: Кофейный напиток на молоке | F122: 200 | G122: 3.24 | H122: 3.54 | I122: 15.04 | J122: 105.86 | K122: 274
D123: хлеб | E123: Хлеб пшеничный | F123: 50 | G123: 3.95 | H123: 0.5 | I123: 24.15 | J123: 106.8 | K123: Н
D124: фрукты
D125: хлеб | E125: Хлеб ржаной | F125: 30 | G125: 1.98 | H125: 0.36 | I125: 10.02 | J125: 49.62 | K125: 50
D127: итого | F127: 480 | G127: =SUM(G120:G126) -> 41.07 | H127: 28.61 | I127: 82.19 | J127: 715.71 | L127: =SUM(L120:L126) -> 0
A128: =A120 -> 2 | B128: =B120 -> 2 | C128: Обед | D128: закуска | E128: Салат из свежих помидоров | F128: 60 | G128: 0.53 | H128: 3.09 | I128: 2.73 | J128: 69.17 | K128: 12
D129: 1 блюдо | E129: Суп картофельный с бобовыми 2 | F129: 200 | G129: 4.54 | H129: 4.4 | I129: 14.24 | J129: 114.98 | K129: 774
D130: 2 блюдо | E130: Рыба, тушенная в томате с овощами | F130: 90 | G130: 6.81 | H130: 0.48 | I130: 6.44 | J130: 56.92 | K130: 78
D131: гарнир | E131: Картофельное пюре | F131: 150 | G131: 2.89 | H131: 4.98 | I131: 19.03 | J131: 127.92 | K131: 131
D132: напиток | E132: Компот из смеси сухофруктов | F132: 200 | G132: 1.96 | H132: 0.4 | I132: 46.72 | J132: 194.84 | K132: 278
D133: хлеб бел. | E133: Хлеб пшеничный | F133: 25 | G133: 1.98 | H133: 0.25 | I133: 12.07 | J133: 53.4 | K133: 236
D134: хлеб черн. | E134: Хлеб ржаной | F134: 30 | G134: 1.98 | H134: 0.36 | I134: 10.02 | J134: 49.62 | K134: 50
D137: итого | F137: 755 | G137: =SUM(G128:G136) -> 20.69 | H137: 13.96 | I137: 111.25 | J137: 666.85 | L137: =SUM(L128:L136) -> 0
A138: =A120 -> 2 | B138: =B120 -> 2 | C138: Итого за день: | F138: =F127+F137 -> 1235 | G138: =G127+G137 -> 61.76 | H138: =H127+H137 -> 42.57 | I138: =I127+I137 -> 193.44 | J138: =J127+J137 -> 1382.56 | L138: 0
A139: 2 | B139: 3 | C139: Завтрак | D139: гор.блюдо | E139: Тефтели 1-й вариант | F139: 50/20 | G139: 6.47 | H139: 16.1 | I139: 8.47 | J139: 202.7 | K139: 278
D140: гарнир | E140: Каша ячневая рассыпчатая | F140: 150/5 | G140: 5.02 | H140: 3.69 | I140: 32.43 | J140: 184.44 | K140: 170
D141: гор.напиток | E141: Чай с молоком или сливками | F141: 200 | G141: 1.44 | H141: 1.48 | I141: 16.14 | J141: 84.52 | K141: 378
D142: хлеб | E142: Хлеб пшеничный | F142: 50 | G142: 3.95 | H142: 0.5 | I142: 24.15 | J142: 106.8 | K142: Н
D143: фрукты
D144: закуска | E144: Зеленый горошек | F144: 30 | G144: 6.9 | H144: 0.36 | I144: 15.99 | J144: 90.81 | K144: 28
D145: хлеб | E145: Хлеб ржаной 1 | F145: 30 | G145: 1.98 | H145: 0.36 | I145: 10.02 | J145: 49.62 | K145: 51
D146: итого | F146: 510 | G146: =SUM(G139:G145) -> 25.76 | H146: 22.49 | I146: 107.2 | J146: 718.89 | L146: =SUM(L139:L145) -> 0
A147: =A139 -> 2 | B147: =B139 -> 3 | C147: Обед | D147: закуска | E147: Салат из свеклы отварной | F147: 60 | G147: 0.46 | H147: 2.43 | I147: 2.68 | J147: 34.34 | K147: 52
D148: 1 блюдо | E148: Суп картофельный с макаронными изделиями | F148: 200 | G148: 2.08 | H148: 2.92 | I148: 14.88 | J148: 95 | K148: 59
D149: 2 блюдо | E149: Рагу овощное с мясом курицы | F149: 200 | G149: 7.88 | H149: 15.24 | I149: 25.86 | J149: 268 | K149: 145
D150: гарнир
D151: напиток | E151: Компот из смеси сухофруктов | F151: 200 | G151: 1.96 | H151: 0.4 | I151: 46.72 | J151: 194.84 | K151: 278
D152: хлеб бел. | E152: Хлеб пшеничный | F152: 25 | G152: 1.98 | H152: 0.25 | I152: 12.07 | J152: 53.4 | K152: 236
D153: хлеб черн. | E153: Хлеб ржаной | F153: 30 | G153: 1.98 | H153: 0.36 | I153: 10.02 | J153: 49.62 | K153: 50
D156: итого | F156: 695 | G156: =SUM(G147:G155) -> 16.34 | H156: 21.6 | I156: 112.23 | J156: 695.2 | L156: =SUM(L147:L155) -> 0
A157: =A139 -> 2 | B157: =B139 -> 3 | C157: Итого за день: | F157: =F146+F156 -> 1205 | G157: =G146+G156 -> 42.1 | H157: =H146+H156 -> 44.09 | I157: =I146+I156 -> 219.43 | J157: =J146+J156 -> 1414.09 | L157: 0
A158: 2 | B158: 4 | C158: Завтрак | D158: гор.блюдо | E158: Рыба, тушенная в томате с овощами | F158: 60/20 | G158: 4.54 | H158: 0.32 | I158: 4.3 | J158: 37.95 | K158: 78
D159: гарнир | E159: Картофельное пюре | F159: 120 | G159: 2.12 | H159: 3.65 | I159: 13.96 | J159: 93.81 | K159: 131
D160: гор.напиток | E160: Какао с молоком | F160: 200 | G160: 3.86 | H160: 3.9 | I160: 14.82 | J160: 114.82 | K160: 274
D161: хлеб | E161: Хлеб пшеничный | F161: 50 | G161: 3.95 | H161: 0.5 | I161: 24.15 | J161: 106.8 | K161: Н
D162: фрукты
D163: закуска | E163: Салат из свежих огурцов | F163: 60 | G163: 0.32 | H163: 2.04 | I163: 1.18 | J163: 24 | K163: 36
D164: хлеб | E164: Хлеб ржаной 1 | F164: 30 | G164: 1.98 | H164: 0.36 | I164: 10.02 | J164: 49.62 | K164: 51
D165: итого | F165: 550 | G165: =SUM(G158:G164) -> 16.77 | H165: 10.77 | I165: 68.43 | J165: 427 | L165: =SUM(L158:L164) -> 0
A166: =A158 -> 2 | B166: =B158 -> 4 | C166: Обед | D166: закуска | E166: Салат из свежих огурцов | F166: 60 | G166: 0.47 | H166: 3.06 | I166: 1.78 | J166: 36.53 | K166: 13
D167: 1 блюдо | E167: Борщ с капустой и картофелем | F167: 200/5 | G167: 1.78 | H167: 4.98 | I167: 11.22 | J167: 97.68 | K167: 54
D168: 2 блюдо | E168: Плов из свинины | F168: 240 | G168: 17.02 | H168: 49.34 | I168: 45.91 | J168: 679.58 | K168: 96
D169: гарнир
D170: напиток | E170: Компот из смеси сухофруктов | F170: 200 | G170: 1.96 | H170: 0.4 | I170: 46.72 | J170: 194.84 | K170: 278
D171: хлеб бел. | E171: Хлеб пшеничный | F171: 25 | G171: 1.98 | H171: 0.25 | I171: 12.07 | J171: 53.4 | K171: 236
D172: хлеб черн. | E172: Хлеб ржаной | F172: 30 | G172: 1.98 | H172: 0.36 | I172: 10.02 | J172: 49.62 | K172: 50
D175: итого | F175: 755 | G175: =SUM(G166:G174) -> 25.19 | H175: 58.39 | I175: 127.72 | J175: 1111.65 | L175: =SUM(L166:L174) -> 0
A176: =A158 -> 2 | B176: =B158 -> 4 | C176: Итого за день: | F176: =F165+F175 -> 1305 | G176: =G165+G175 -> 41.96 | H176: =H165+H175 -> 69.16 | I176: =I165+I175 -> 196.15 | J176: =J165+J175 -> 1538.65 | L176: 0
A177: 2 | B177: 5 | C177: Завтрак | D177: гор.блюдо | E177: Каша пшенная молочная жидкая | F177: 220/5 | G177: 7.74 | H177: 8.87 | I177: 44.29 | J177: 283.16 | K177: 185
D179: гор.напиток | E179: Чай с сахаром | F179: 200 | G179: 0.4 | H179: 0 | I179: 14.06 | J179: 56.7 | K179: 268
D180: хлеб | E180: Хлеб пшеничный | F180: 50 | G180: 3.95 | H180: 0.5 | I180: 24.15 | J180: 106.8 | K180: Н
D181: фрукты
D182: хлеб | E182: Хлеб ржаной 1 | F182: 30 | G182: 1.98 | H182: 0.36 | I182: 10.02 | J182: 49.62 | K182: 51
D184: итого | F184: 500 | G184: =SUM(G177:G183) -> 14.07 | H184: 9.73 | I184: 92.52 | J184: 496.28 | L184: =SUM(L177:L183) -> 0
A185: =A177 -> 2 | B185: =B177 -> 5 | C185: Обед | D185: закуска | E185: Икра кабачковая | F185: 60 | G185: 1.2 | H185: 5.4 | I185: 5.16 | J185: 73.2 | K185: 12
D186: 1 блюдо | E186: Свекольник | F186: 220/7 | G186: 1.87 | H186: 4.27 | I186: 12.65 | J186: 92.77 | K186: 55
D187: 2 блюдо | E187: Котлета из свинины | F187: 90 | G187: 10.67 | H187: 26.47 | I187: 13.76 | J187: 331.77 | K187: 103
D188: гарнир | E188: Каша пшеничная рассыпчатая | F188: 150/5 | G188: 7.58 | H188: 3.71 | I188: 41.98 | J188: 216.83 | K188: 167
D189: напиток | E189: Компот из смеси сухофруктов | F189: 200 | G189: 1.96 | H189: 0.4 | I189: 46.72 | J189: 194.84 | K189: 278
D190: хлеб бел. | E190: Хлеб пшеничный | F190: 25 | G190: 1.98 | H190: 0.25 | I190: 12.07 | J190: 53.4 | K190: 236
D191: хлеб черн. | E191: Хлеб ржаной | F191: 30 | G191: 1.98 | H191: 0.36 | I191: 10.02 | J191: 49.62 | K191: 50
D194: итого | F194: 775 | G194: =SUM(G185:G193) -> 27.24 | H194: 40.86 | I194: 142.36 | J194: 1012.43 | L194: =SUM(L185:L193) -> 0
A195: =A177 -> 2 | B195: =B177 -> 5 | C195: Итого за день: | F195: =F184+F194 -> 1275 | G195: =G184+G194 -> 41.31 | H195: =H184+H194 -> 50.59 | I195: =I184+I194 -> 234.88 | J195: =J184+J194 -> 1508.71 | L195: 0
C196: Среднее значение за период: | F196: =(F24+F43+F62+F81+F100+F119+F138+F157+F176+F195)/(IF(F24=0,0,1)+IF(F43=0,0,1)+IF(F62=0,0,1)+IF(F81=0,0,1)+IF(F100=0,0,1)+IF(F119=0,0,1)+IF(F138=0,0,1)+IF(F157=0,0,1)+IF(F176=0,0,1)+IF(F195=0,0,1)) -> 1252 | G196: =(G24+G43+G62+G81+G100+G119+G138+G157+G176+G195)/(IF(G24=0,0,1)+IF(G43=0,0,1)+IF(G62=0,0,1)+IF(G81=0,0,1)+IF(G100=0,0,1)+IF(G119=0,0,1)+IF(G138=0,0,1)+IF(G157=0,0,1)+IF(G176=0,0,1)+IF(G195=0,0,1)) -> 47.206 | H196: 54.241 | I196: 214.999 | J196: 1505.118 | L196: =(L24+L43+L62+L81+L100+L119+L138+L157+L176+L195)/(IF(L24=0,0,1)+IF(L43=0,0,1)+IF(L62=0,0,1)+IF(L81=0,0,1)+IF(L100=0,0,1)+IF(L119=0,0,1)+IF(L138=0,0,1)+IF(L157=0,0,1)+IF(L176=0,0,1)+IF(L195=0,0,1)) -> 
